bitfinex/quotes_SOLUSD_20250418
["timestamp","ask_amount","ask_price","bid_price","bid_amount"]
[1744988521783,0.03,133.31,133.3,15.15661202]
[1744988523886,0.03,133.31,133.28,15.15661202]
[1744988524402,21.45591202,133.31,133.26,48.68626088]
[1744988524591,15.15661202,133.3,133.26,48.68626088]
[1744988524775,22.65899035,133.3,133.26,48.68626088]
[1744988525093,22.65899035,133.3,133.26,82.19036855]
[1744988525094,7.50237833,133.3,133.26,82.19036855]
[1744988525282,28.95746408,133.31,133.27,15.15661202]
[1744988525698,13.80085206,133.31,133.27,15.15661202]
[1744988525905,13.80085206,133.31,133.28,15.15661202]
[1744988525906,6.2993,133.31,133.28,15.15661202]
[1744988527402,13.80062292,133.31,133.28,15.15661202]
[1744988528100,6.2993,133.31,133.28,15.15661202]
[1744988529897,13.80077389,133.31,133.28,15.15661202]
[1744988530599,6.2993,133.31,133.28,15.15661202]
[1744988531788,6.2993,133.31,133.28,22.6595267]
[1744988532289,6.2993,133.31,133.28,15.15661202]
[1744988533302,6.2993,133.31,133.28,22.65950107]
[1744988535104,13.80065133,133.31,133.28,15.15661202]
[1744988537209,28.95726335,133.31,133.26,56.19009396]
[1744988537512,15.15661202,133.3,133.26,41.03348194]
[1744988537806,28.95726335,133.31,133.26,56.19009396]
[1744988538315,13.80065133,133.31,133.27,15.15661202]
[1744988541208,13.80065133,133.31,133.27,22.66010366]
[1744988541401,13.80065133,133.31,133.27,15.15661202]
[1744988543006,0.03,133.31,133.29,15.15661202]
[1744988543306,0.03,133.31,133.3,15.15661202]
[1744988544494,0.03,133.31,133.3,22.65848748]
[1744988545493,0.03,133.31,133.3,15.15661202]
[1744988545899,0.03,133.31,133.29,22.65877202]
[1744988546102,0.03,133.31,133.28,15.15661202]
[1744988546404,15.18661202,133.31,133.27,22.38334433]
[1744988546583,22.68793391,133.31,133.27,37.53995635]
[1744988547083,7.53132189,133.31,133.27,37.53995635]
[1744988548010,22.68793391,133.31,133.26,26.15349132]
[1744988548207,22.68793391,133.31,133.26,41.31010334]
[1744988548384,22.68793391,133.31,133.26,26.15349132]
[1744988548593,7.53132189,133.31,133.26,41.31010334]
[1744988548801,22.68793391,133.31,133.26,41.31010334]
[1744988549204,22.68793391,133.31,133.27,15.15661202]
[1744988550109,7.53132189,133.31,133.27,22.66016179]
[1744988550788,7.53132189,133.31,133.28,15.15661202]
[1744988555318,7.53132189,133.31,133.27,22.66017362]
[1744988555524,0.03,133.31,133.28,15.15661202]
[1744988555906,0.03,133.31,133.29,15.15661202]
[1744988556407,0.03,133.31,133.28,15.15661202]
[1744988557208,0.03,133.31,133.3,15.15661202]
[1744988558221,0.03,133.31,133.3,22.65848748]
[1744988559218,0.03,133.31,133.3,41.73462105]
[1744988561432,0.03,133.31,133.3,41.30813634]
[1744988561608,0.03,133.31,133.29,15.15661202]
[1744988561815,0.03,133.31,133.29,41.15661202]
[1744988562014,0.03,133.31,133.3,15.15661202]
[1744988562713,0.03,133.31,133.3,22.65848748]
[1744988565036,0.03,133.31,133.3,15.15661202]
[1744988565537,0.03,133.31,133.29,15.15661202]
[1744988566325,0.03,133.31,133.3,15.15661202]
[1744988567326,0.03,133.31,133.3,22.65848748]
[1744988570734,0.03,133.31,133.3,48.65848748]
[1744988572921,0.03,133.31,133.3,67.73462105]
[1744988575744,0.03,133.31,133.3,67.30813634]
[1744988577021,0.03,133.31,133.28,7.50279687]
[1744988577345,0.03,133.31,133.28,48.65940889]
[1744988577647,0.03,133.31,133.29,15.15661202]
[1744988577847,15.18661202,133.31,133.27,14.86]
[1744988578026,15.15661202,133.3,133.27,14.86]
[1744988578226,15.15661202,133.3,133.26,15.15661202]
[1744988579045,15.18661202,133.31,133.26,22.66052269]
[1744988579346,15.18661202,133.31,133.26,7.50391067]
[1744988579543,15.18661202,133.31,133.26,22.66052269]
[1744988580049,7.50187546,133.3,133.26,18.64964886]
[1744988580227,7.50187546,133.3,133.26,33.80626088]
[1744988580928,22.68803641,133.31,133.26,33.80626088]
[1744988581821,22.68803641,133.31,133.27,15.15661202]
[1744988582247,22.68803641,133.31,133.26,41.31034267]
[1744988587154,22.68803641,133.31,133.26,15.15661202]
[1744988587359,15.15661202,133.3,133.25,15.15661202]
[1744988587540,22.68803641,133.31,133.26,15.15661202]
[1744988592362,21.68803641,133.31,133.26,15.15661202]
[1744988595969,6.53142439,133.31,133.27,15.15661202]
[1744988596264,21.68803641,133.31,133.27,15.15661202]
[1744988596470,21.68803641,133.31,133.26,15.15661202]
[1744988597173,22.65905031,133.29,133.25,15.15661202]
[1744988597359,22.65905031,133.29,133.24,48.66167766]
[1744988599773,22.65905031,133.29,133.25,15.15661202]
[1744988600376,15.15661202,133.29,133.25,15.15661202]
[1744988600553,15.15661202,133.3,133.26,15.15661202]
[1744988601762,7.50243829,133.29,133.26,15.15661202]
[1744988603778,7.50187546,133.3,133.26,15.15661202]
[1744988604077,7.50187546,133.3,133.27,15.15661202]
[1744988605287,7.50187546,133.3,133.26,15.15661202]
[1744988607075,7.50187546,133.3,133.26,22.66070606]
[1744988607756,7.50159433,133.31,133.27,15.15661202]
[1744988608061,7.50159433,133.31,133.28,15.15661202]
[1744988608768,7.50159433,133.31,133.27,15.15661202]
[1744988609364,22.65820635,133.31,133.26,22.66069106]
[1744988610371,22.65820635,133.31,133.26,15.15661202]
[1744988610575,22.65820635,133.31,133.26,22.66065268]
[1744988613489,7.50159433,133.31,133.27,15.15661202]
[1744988613785,7.50159433,133.31,133.26,15.15661202]
[1744988614582,7.50159433,133.31,133.26,22.66046032]
[1744988614982,22.65820635,133.31,133.26,22.66046032]
[1744988618097,22.65820635,133.31,133.26,15.15661202]
[1744988618395,22.65820635,133.31,133.25,22.66099253]
[1744988618897,15.15661202,133.3,133.25,22.66099253]
[1744988619392,7.50227866,133.3,133.25,22.66099253]
[1744988620392,7.50227866,133.3,133.26,22.66071218]
[1744988624208,7.50160282,133.31,133.27,15.15661202]
[1744988624394,7.50104073,133.32,133.28,15.15661202]
[1744988625005,22.65765275,133.32,133.28,15.15661202]
[1744988625311,22.65765275,133.32,133.27,15.15661202]
[1744988625908,22.65765275,133.32,133.27,22.66004672]
[1744988629111,0.03,133.33,133.3,15.15661202]
[1744988629282,0.03,133.33,133.31,15.15661202]
[1744988629484,0.03,133.33,133.32,15.15661202]
[1744988632820,0.03,133.33,133.31,22.6576364]
[1744988632994,0.03,133.33,133.3,22.65823144]
[1744988636621,0.03,133.33,133.3,26.25630809]
[1744988636792,0.03,133.33,133.31,15.15661202]
[1744988637822,0.03,133.33,133.31,22.65759424]
[1744988639421,0.03,133.33,133.3,48.65819218]
[1744988640413,0.03,133.33,133.31,22.65750241]
[1744988640619,0.03,133.33,133.31,7.50089039]
[1744988640825,15.15661202,133.32,133.27,26.15321305]
[1744988641120,15.15661202,133.32,133.27,67.30982507]
[1744988641297,15.15661202,133.32,133.27,41.30982507]
[1744988641718,15.15661202,133.32,133.27,67.30982507]
[1744988642022,15.15661202,133.31,133.27,7.50356419]
[1744988642327,15.15661202,133.32,133.28,15.15661202]
[1744988642518,15.15661202,133.32,133.28,22.65952658]
[1744988643020,15.15661202,133.32,133.28,7.50291456]
[1744988643404,15.15661202,133.32,133.28,22.65952658]
[1744988643602,22.65752343,133.32,133.28,22.65952658]
[1744988646426,7.50091141,133.32,133.25,40.86]
[1744988646630,15.15661202,133.29,133.25,40.86]
[1744988646817,15.15661202,133.28,133.25,40.86]
[1744988648432,22.65971963,133.28,133.25,40.86]
[1744988649833,22.65971963,133.28,133.25,14.86]
[1744988650136,15.15661202,133.26,133.22,22.72562002]
[1744988650848,15.15661202,133.26,133.22,7.569008]
[1744988651131,7.50410223,133.27,133.22,22.72562002]
[1744988651430,22.66071425,133.27,133.23,15.15661202]
[1744988651831,7.50410223,133.27,133.23,15.15661202]
[1744988652134,22.66071425,133.27,133.23,15.15661202]
[1744988652931,22.66071425,133.27,133.23,22.66241869]
[1744988653317,22.66071425,133.27,133.22,22.7257781]
[1744988654028,15.15661202,133.26,133.22,22.7257781]
[1744988655110,22.6608599,133.26,133.22,22.7257781]
[1744988655326,46.34652132,133.3,133.22,22.7257781]
[1744988655327,22.6604267,133.27,133.22,22.7257781]
[1744988655633,22.6604267,133.27,133.23,15.15661202]
[1744988656013,22.6604267,133.27,133.22,22.7257781]
[1744988661142,22.6604267,133.27,133.23,15.15661202]
[1744988663048,22.6604267,133.27,133.22,22.7257781]
[1744988664239,7.50325971,133.28,133.23,15.15661202]
[1744988664440,15.15661202,133.27,133.23,15.15661202]
[1744988665437,22.66044413,133.27,133.23,15.15661202]
[1744988665971,22.66044413,133.27,133.22,7.56916608]
[1744988666245,22.66044413,133.27,133.22,22.7257781]
[1744988670243,15.15661202,133.24,133.22,0.063]
[1744988672541,15.15661202,133.23,133.22,0.063]
[1744988673866,21.79661202,133.23,133.22,0.063]
[1744988674379,21.93877359,133.23,133.21,0.063]
[1744988674538,0.14216157,133.21,133.2,0.063]
[1744988674869,75.92522167,133.21,133.2,0.063]
[1744988675157,76.06738324,133.21,133.2,1e-08]
[1744988675376,45.07613357,133.19,133.18,0.063]
[1744988675545,45.07613357,133.19,133.18,1e-08]
[1744988675737,60.23274559,133.19,133.18,1e-08]
[1744988676155,6.33706157,133.18,133.16,0.063]
[1744988676371,15.29877359,133.17,133.16,0.063]
[1744988676669,22.80797235,133.17,133.16,0.063]
[1744988676841,24.42627235,133.17,133.16,0.063]
[1744988677454,0.14216157,133.16,133.15,0.063]
[1744988677666,15.29877359,133.16,133.15,0.063]
[1744988678482,15.15661202,133.16,133.15,0.063]
[1744988678665,15.29877359,133.16,133.15,0.063]
[1744988679173,44.933972,133.14,133.13,1e-08]
[1744988679378,18.933972,133.13,133.11,0.063]
[1744988679748,25.548272,133.13,133.11,0.063]
[1744988679962,0.14216157,133.12,133.11,0.063]
[1744988681273,7.6541808,133.12,133.11,0.063]
[1744988682949,43.31516482,133.12,133.11,0.063]
[1744988683470,24.66551596,133.12,133.11,0.063]
[1744988683670,43.31516482,133.12,133.11,0.063]
[1744988684673,7.51201923,133.12,133.11,0.063]
[1744988684892,7.51032669,133.15,133.11,0.063]
[1744988685080,15.15661202,133.14,133.11,0.063]
[1744988685456,7.51032669,133.15,133.11,0.063]
[1744988685667,15.15661202,133.14,133.11,0.063]
[1744988685879,15.15661202,133.13,133.11,0.063]
[1744988686079,7.51055777,133.15,133.11,0.063]
[1744988686252,22.66716979,133.15,133.11,0.063]
[1744988686459,7.51055777,133.15,133.11,0.063]
[1744988686790,15.15661202,133.14,133.11,0.063]
[1744988687284,15.15661202,133.13,133.11,0.063]
[1744988687591,15.15661202,133.12,133.11,0.063]
[1744988688790,7.51154318,133.13,133.11,0.063]
[1744988689091,15.15661202,133.14,133.11,0.063]
[1744988689277,15.15661202,133.13,133.11,0.063]
[1744988690494,22.66772155,133.14,133.11,0.063]
[1744988690985,15.15661202,133.13,133.11,0.063]
[1744988692685,22.66824248,133.13,133.11,0.063]
[1744988692862,15.15661202,133.13,133.11,0.063]
[1744988693287,22.66810882,133.13,133.11,0.063]
[1744988693685,15.15661202,133.13,133.11,0.063]
[1744988693880,22.66767424,133.14,133.11,0.063]
[1744988694062,44.91646485,133.17,133.11,0.063]
[1744988694063,22.66709747,133.15,133.11,0.063]
[1744988695373,15.15661202,133.14,133.11,0.063]
[1744988697090,22.66750567,133.14,133.11,0.063]
[1744988697384,15.15661202,133.12,133.11,0.063]
[1744988698876,22.66863125,133.12,133.11,0.063]
[1744988700768,18.77722697,133.14,133.11,0.063]
[1744988700980,15.15661202,133.12,133.11,0.063]
[1744988701692,15.15661202,133.12,133.1,0.063]
[1744988701693,59.94842245,133.12,133.1,0.063]
[1744988701894,14.86,133.13,133.08,0.063]
[1744988701895,26.14216157,133.09,133.08,0.063]
[1744988702085,0.14216157,133.08,133.07,0.063]
[1744988702391,75.92522167,133.08,133.07,0.063]
[1744988702590,18.64964886,133.07,133.06,1e-08]
[1744988702801,18.64964886,133.07,133.04,0.063]
[1744988702802,7.65756815,133.06,133.04,0.063]
[1744988703167,22.6720186,133.06,133.04,0.063]
[1744988703474,0.14216157,133.05,133.04,0.063]
[1744988703680,15.29877359,133.05,133.04,0.063]
[1744988704184,0.14216157,133.05,133.04,0.063]
[1744988704391,15.29877359,133.05,133.04,0.063]
[1744988704702,22.81474502,133.05,133.04,0.063]
[1744988705181,31.37918168,133.05,133.04,0.063]
[1744988705901,50.31315368,133.05,133.04,1e-08]
[1744988706993,26.14216157,133.03,132.97,0.063]
[1744988707187,49.72104868,133.03,132.97,23.78404868]
[1744988708196,57.23815008,133.03,132.97,23.78404868]
[1744988711000,57.38031165,133.03,132.97,0.063]
[1744988711581,0.14216157,133.02,132.97,0.063]
[1744988711784,23.86321025,133.02,132.97,0.063]
[1744988712580,31.38087676,133.02,132.97,0.063]
[1744988713383,7.51766651,133.02,132.97,0.063]
[1744988713589,7.51766651,133.02,132.97,23.78404868]
[1744988713799,31.23871519,133.02,132.97,0.063]
[1744988715598,31.38087676,133.02,132.97,0.063]
[1744988715774,56.86314876,133.02,132.97,0.063]
[1744988719113,56.86314876,133.02,133.01,1e-08]
[1744988720000,80.58419744,133.02,133.01,1e-08]
[1744988720299,81.58419744,133.02,133.01,1e-08]
[1744988721108,26.0,132.99,132.97,0.063]
[1744988721407,23.86321025,132.98,132.97,0.063]
[1744988723195,31.38313805,132.98,132.97,0.063]
[1744988724809,50.31711005,132.98,132.97,0.063]
[1744988725114,31.66746119,132.98,132.97,0.063]
[1744988725417,41.7905233,132.98,132.97,0.063]
[1744988726012,56.6705233,132.98,132.97,0.063]
[1744988729319,15.3366235,132.97,132.96,0.063]
[1744988730813,22.85711684,132.97,132.96,0.063]
[1744988735126,41.79108884,132.97,132.96,0.063]
[1744988739422,60.5923222,132.97,132.91,15.25746193]
[1744988739726,15.19446193,132.96,132.91,15.25746193]
[1744988740632,45.39786027,132.97,132.91,0.063]
[1744988740823,45.39786027,132.97,132.92,15.19446193]
[1744988741127,60.5923222,132.97,132.92,15.19446193]
[1744988741631,60.5923222,132.97,132.91,15.25746193]
[1744988742526,15.19446193,132.96,132.91,15.25746193]
[1744988743232,7.52162467,132.95,132.91,15.25746193]
[1744988743439,7.5199278,132.98,132.94,15.19446193]
[1744988743742,7.5199278,132.98,132.95,15.19446193]
[1744988744108,7.5199278,132.98,132.91,7.58683156]
[1744988744308,7.5199278,132.98,132.96,15.19446193]
[1744988744610,7.5199278,132.98,132.95,16.78806193]
[1744988744834,7.5199278,132.98,132.96,15.19446193]
[1744988745244,14.88,133.0,132.96,15.19446193]
[1744988745539,33.51766651,133.02,132.99,15.19446193]
[1744988745739,48.71212844,133.02,132.97,15.19446193]
[1744988746108,22.71212844,133.02,132.97,15.19446193]
[1744988746712,48.71212844,133.02,132.97,15.19446193]
[1744988747141,33.51766651,133.02,132.98,15.19446193]
[1744988747515,22.42702509,133.04,133.01,15.19446193]
[1744988747820,0.03,133.04,133.02,15.19446193]
[1744988748229,7.546539,133.04,133.01,15.19446193]
[1744988748415,15.19446193,133.03,133.0,1.5913]
[1744988748639,15.19446193,133.01,132.97,16.78576193]
[1744988749055,15.19446193,133.0,132.97,1.5913]
[1744988749559,7.51766651,133.02,132.98,15.19446193]
[1744988750045,22.71212844,133.02,132.98,15.19446193]
[1744988750352,15.19446193,133.0,132.97,1.5913]
[1744988750656,22.71438973,132.98,132.93,16.79786193]
[1744988751146,22.71438973,132.98,132.93,1.6034]
[1744988751338,22.71438973,132.98,132.93,16.79786193]
[1744988752142,7.5199278,132.98,132.93,1.6034]
[1744988752352,7.5199278,132.98,132.95,15.19446193]
[1744988752645,7.51936235,132.99,132.95,15.19446193]
[1744988753939,7.51936235,132.99,132.93,9.12594713]
[1744988754141,7.51936235,132.99,132.95,15.19446193]
[1744988754354,15.19446193,132.98,132.94,15.19446193]
[1744988754736,7.52049334,132.97,132.94,15.19446193]
[1744988755756,7.52049334,132.97,132.93,16.79786193]
[1744988756753,15.19446193,132.97,132.93,16.79786193]
[1744988757947,7.52105896,132.96,132.93,16.79786193]
[1744988758657,7.52105896,132.96,132.93,1.6034]
[1744988758854,7.52049334,132.97,132.93,1.6034]
[1744988759056,41.51618863,132.97,132.92,15.19446193]
[1744988759443,41.51618863,132.97,132.91,0.063]
[1744988759654,41.51618863,132.97,132.92,15.19446193]
[1744988759961,15.19446193,132.96,132.91,15.25746193]
[1744988761162,7.52162467,132.95,132.91,15.25746193]
[1744988762042,41.52014827,132.95,132.91,0.063]
[1744988763151,41.52014827,132.95,132.91,15.25746193]
[1744988767566,15.19446193,132.94,132.91,0.063]
[1744988768452,15.19446193,132.93,132.91,0.063]
[1744988769675,7.52332229,132.92,132.91,0.063]
[1744988771686,22.71721826,132.93,132.91,0.063]
[1744988771873,15.19446193,132.92,132.91,0.063]
[1744988772186,22.71721826,132.93,132.91,0.063]
[1744988774854,15.19446193,132.92,132.91,0.063]
[1744988775449,7.52275633,132.93,132.91,0.063]
[1744988775662,22.71721826,132.93,132.91,0.063]
[1744988778366,15.19446193,132.92,132.91,0.063]
[1744988778985,22.71721826,132.93,132.91,0.063]
[1744988779697,7.52275633,132.93,132.91,0.063]
[1744988780869,22.71721826,132.93,132.91,0.063]
[1744988781085,7.52275633,132.93,132.91,0.063]
[1744988781285,22.71721826,132.93,132.91,0.063]
[1744988781961,15.19446193,132.92,132.91,0.063]
[1744988782694,48.71778422,132.92,132.91,0.063]
[1744988783795,48.85994579,132.92,132.91,0.063]
[1744988783960,0.14216157,132.91,132.9,0.063]
[1744988784287,15.3366235,132.91,132.9,0.063]
[1744988784656,22.86051184,132.91,132.9,0.063]
[1744988784887,22.71835027,132.91,132.9,0.063]
[1744988785281,22.71835027,132.91,132.9,1e-08]
[1744988785282,67.79448384,132.91,132.9,1e-08]
[1744988786582,22.71835027,132.91,132.9,1e-08]
[1744988786765,26.0,132.91,132.9,1e-08]
[1744988786965,7.52332229,132.92,132.9,1e-08]
[1744988786966,22.71778422,132.92,132.9,1e-08]
[1744988787288,15.19446193,132.91,132.9,1e-08]
[1744988788491,48.71835027,132.91,132.9,1e-08]
[1744988788669,14.88,132.93,132.9,1e-08]
[1744988788868,7.52351334,132.92,132.9,1e-08]
[1744988789592,22.71797527,132.92,132.9,1e-08]
[1744988790288,7.52351334,132.92,132.9,1e-08]
[1744988792591,7.52302205,132.93,132.9,1e-08]
[1744988794068,15.19446193,132.92,132.9,1e-08]
[1744988794463,7.52388834,132.91,132.9,1e-08]
[1744988794969,22.71835027,132.91,132.9,1e-08]
[1744988795792,7.52388834,132.91,132.9,1e-08]
[1744988796693,33.52332229,132.92,132.9,1e-08]
[1744988796880,15.19446193,132.91,132.9,1e-08]
[1744988797388,48.71778422,132.92,132.9,1e-08]
[1744988799377,15.19446193,132.91,132.9,1e-08]
[1744988800783,22.71835027,132.91,132.9,1e-08]
[1744988803298,22.86051184,132.91,132.9,1e-08]
[1744988806998,22.86051184,132.91,132.89,1.54906931]
[1744988807183,22.7189164,132.9,132.89,1.54906931]
[1744988807588,22.86107797,132.9,132.89,1.54906931]
[1744988809083,22.7189164,132.9,132.89,1.54906931]
[1744988815400,7.52405928,132.91,132.89,1.54906931]
[1744988816706,15.19446193,132.91,132.89,1.54906931]
[1744988817208,41.52608996,132.92,132.89,1.54906931]
[1744988819010,15.19446193,132.91,132.89,1.54906931]
[1744988820697,7.52445447,132.9,132.89,1.54906931]
[1744988821915,22.7189164,132.9,132.89,1.54906931]
[1744988824117,7.52445447,132.9,132.89,1.54906931]
[1744988826721,26.17410333,132.9,132.88,0.063]
[1744988826910,15.19446193,132.89,132.88,0.063]
[1744988827104,22.7189164,132.9,132.88,0.063]
[1744988827911,22.7189164,132.9,132.88,3.8166471]
[1744988829028,80.9,132.96,132.89,15.19446193]
[1744988829207,15.19446193,132.95,132.9,15.19446193]
[1744988829408,15.19446193,132.94,132.9,15.19446193]
[1744988829922,95.8,132.96,132.89,15.19446193]
[1744988830110,7.52275633,132.93,132.9,15.19446193]
[1744988830631,15.19446193,132.95,132.91,15.19446193]
[1744988830829,0.03,132.97,132.94,15.19446193]
[1744988831016,0.03,132.97,132.95,15.19446193]
[1744988831528,7.55051378,132.97,132.94,15.19446193]
[1744988831699,22.74497571,132.97,132.93,16.75276193]
[1744988831902,22.74497571,132.97,132.93,1.5583]
[1744988832134,22.71599569,132.96,132.92,15.19446193]
[1744988833123,15.19446193,132.93,132.9,1.6415]
[1744988833821,15.19446193,132.91,132.88,3.8166471]
[1744988834027,15.19446193,132.9,132.88,3.8166471]
[1744988834228,15.19446193,132.89,132.88,3.8166471]
[1744988834423,15.19446193,132.9,132.88,3.8166471]
[1744988835228,31.28320231,132.9,132.88,3.8166471]
[1744988836907,23.75834588,132.89,132.88,3.8166471]
[1744988837608,31.28320231,132.9,132.88,3.8166471]
[1744988840807,31.28320231,132.9,132.88,3.3166471]
[1744988842249,23.75834588,132.89,132.88,3.3166471]
[1744988842534,31.28320231,132.9,132.88,3.3166471]
[1744988842712,22.40412961,132.91,132.88,3.3166471]
[1744988843204,46.16247549,132.91,132.88,3.3166471]
[1744988844412,23.75834588,132.92,132.88,3.3166471]
[1744988844730,26.0,132.93,132.89,23.75834588]
[1744988844935,31.28081324,132.94,132.9,23.75834588]
[1744988846033,7.52246736,132.94,132.9,23.75834588]
[1744988847234,31.28081324,132.94,132.89,23.75834588]
[1744988847440,23.75834588,132.93,132.89,23.75834588]
[1744988847630,23.75834588,132.93,132.88,34.60036773]
[1744988848009,31.28155159,132.93,132.88,34.60036773]
[1744988849337,23.75834588,132.92,132.88,10.84202185]
[1744988849744,23.75834588,132.93,132.88,34.60036773]
[1744988850334,23.75834588,132.93,132.89,23.75834588]
[1744988850539,7.52219046,132.94,132.9,23.75834588]
[1744988851540,23.75834588,132.93,132.89,31.28326088]
[1744988851725,31.28111995,132.93,132.89,7.524915]
[1744988851920,31.28111995,132.93,132.89,31.28326088]
[1744988852243,31.28111995,132.93,132.88,3.3166471]
[1744988852244,23.75834588,132.9,132.88,3.3166471]
[1744988852428,23.75834588,132.89,132.88,3.3166471]
[1744988852824,23.75834588,132.9,132.88,3.3166471]
[1744988853540,31.2831426,132.9,132.88,3.3166471]
[1744988855420,23.75834588,132.89,132.88,3.3166471]
[1744988856319,31.28336657,132.89,132.88,3.3166471]
[1744988857138,22.73285244,132.89,132.88,3.3166471]
[1744988858949,187.50427944,132.89,132.87,0.063]
[1744988859157,56.14783175,132.88,132.84,0.063]
[1744988859445,15.20783175,132.87,132.84,0.063]
[1744988859638,15.20783175,132.85,132.84,0.063]
[1744988860125,15.20783175,132.86,132.84,0.063]
[1744988860321,15.20783175,132.85,132.84,0.063]
[1744988860924,15.20783175,132.86,132.84,0.063]
[1744988861249,23.77338689,132.86,132.84,0.063]
[1744988861552,23.77338689,132.85,132.84,0.063]
[1744988862330,7.52635414,132.87,132.84,0.063]
[1744988862546,23.77338689,132.85,132.84,0.063]
[1744988871760,7.52582151,132.88,132.84,0.063]
[1744988872258,23.77338689,132.85,132.84,0.063]
[1744988878847,23.77338689,132.86,132.84,0.063]
[1744988879053,23.77338689,132.85,132.84,0.063]
[1744988880642,31.3002486,132.86,132.84,0.063]
[1744988881165,22.7450784,132.86,132.84,0.063]
[1744988881468,15.21821669,132.85,132.84,0.063]
[1744988882969,15.21821669,132.87,132.84,0.063]
[1744988883173,14.94,132.9,132.84,0.063]
[1744988883355,15.21821669,132.87,132.84,0.063]
[1744988883873,15.21821669,132.86,132.84,0.063]
[1744988884265,15.21821669,132.85,132.84,0.063]
[1744988884475,7.52649141,132.87,132.84,0.063]
[1744988884775,15.21821669,132.86,132.84,0.063]
[1744988885079,22.7447081,132.87,132.84,0.063]
[1744988885295,6.2973,132.86,132.84,0.063]
[1744988885457,26.0,132.83,132.79,0.063]
[1744988885779,15.66,132.85,132.79,0.063]
[1744988885950,0.14216157,132.83,132.79,0.063]
[1744988886151,7.52742249,132.85,132.79,0.063]
[1744988886575,15.21821669,132.85,132.8,15.21821669]
[1744988886761,7.52683925,132.86,132.81,15.21821669]
[1744988887076,105.78044886,132.89,132.83,15.21821669]
[1744988887077,15.21821669,132.88,132.83,15.21821669]
[1744988887282,15.21821669,132.85,132.8,26.0]
[1744988887455,15.21821669,132.85,132.8,41.21821669]
[1744988887660,15.21821669,132.85,132.8,26.0]
[1744988887858,15.21821669,132.86,132.81,15.21821669]
[1744988888079,7.71093918,132.91,132.83,14.71821669]
[1744988888269,15.21821669,132.88,132.82,18.64964886]
[1744988888470,15.21821669,132.88,132.83,15.21821669]
[1744988888975,26.0,132.89,132.84,15.21821669]
[1744988889164,15.21821669,132.89,132.84,15.21821669]
[1744988889482,15.21821669,132.88,132.83,15.21821669]
[1744988889674,15.21821669,132.87,132.82,16.87191669]
[1744988889868,15.21821669,132.85,132.8,64.40819312]
[1744988890076,26.0,132.87,132.79,9.19087365]
[1744988890277,15.21821669,132.87,132.82,15.21821669]
[1744988890973,15.21821669,132.86,132.81,15.21821669]
[1744988891173,33.52516898,132.89,132.81,23.78041389]
[1744988891490,23.78041389,132.87,132.82,23.78041389]
[1744988891691,33.52516898,132.89,132.82,23.78041389]
[1744988891985,23.78041389,132.87,132.82,23.78041389]
[1744988892201,23.78041389,132.86,132.82,7.52892249]
[1744988892492,23.78041389,132.87,132.82,31.30933638]
[1744988892665,33.52518004,132.89,132.82,31.30933638]
[1744988892989,23.78041389,132.86,132.82,7.52892249]
[1744988893365,23.78041389,132.86,132.8,18.64964886]
[1744988893781,33.52518004,132.89,132.82,23.78041389]
[1744988893974,23.78041389,132.87,132.82,23.78041389]
[1744988894168,23.78041389,132.86,132.79,27.6603]
[1744988894379,23.78041389,132.8,132.79,0.063]
[1744988894583,44.933972,132.73,132.72,11.74244328]
[1744988894776,0.14216157,132.72,132.64,54.02180305]
[1744988894978,23.78041389,132.68,132.64,54.02180305]
[1744988895489,23.78041389,132.66,132.64,46.48271977]
[1744988895794,23.78041389,132.65,132.64,46.48271977]
[1744988896667,23.78041389,132.67,132.64,46.48271977]
[1744988896898,43.86939817,132.71,132.64,70.26313366]
[1744988896899,26.0,132.7,132.64,70.26313366]
[1744988897203,49.78041389,132.71,132.67,23.78041389]
[1744988897369,49.87425252,132.73,132.68,23.78041389]
[1744988897681,73.65466641,132.73,132.68,23.78041389]
[1744988897987,49.87425252,132.73,132.68,23.78041389]
[1744988898286,23.78041389,132.71,132.66,23.78041389]
[1744988898494,23.78041389,132.69,132.64,46.48271977]
[1744988898665,23.78041389,132.68,132.64,54.0218533]
[1744988898867,23.78041389,132.67,132.64,46.48271977]
[1744988899064,23.78041389,132.66,132.62,2.608651]
[1744988899268,38.16418447,132.65,132.62,2.608651]
[1744988899560,38.16418447,132.63,132.62,2.608651]
[1744988899889,38.30634604,132.63,132.62,2.608651]
[1744988900102,90.78009033,132.63,132.62,2.608651]